bitfinex/quotes_SOLUSD_20240826
["timestamp","ask_amount","ask_price","bid_price","bid_amount"]
[1724677315219,6.2727,159.42,159.37,6.2746]
[1724677315415,51.2732,159.41,159.36,21.9625]
[1724677315630,45.0,159.41,159.36,15.6877]
[1724677315829,6.2748,159.37,159.33,15.6904]
[1724677316029,15.6197,159.38,159.33,15.6904]
[1724677316228,15.6197,159.38,159.35,6.2754]
[1724677316429,15.6197,159.38,159.34,6.2758]
[1724677316633,6.2752,159.36,159.3,6.2772]
[1724677316846,45.0,159.35,159.29,15.6941]
[1724677317059,45.0,159.35,159.31,6.277]
[1724677317266,45.0,159.36,159.29,15.6941]
[1724677317467,45.0,159.36,159.32,15.6915]
[1724677317643,45.0,159.36,159.32,21.9681]
[1724677318239,51.2751,159.36,159.32,15.6915]
[1724677318718,6.2755,159.35,159.29,21.9718]
[1724677318936,45.0,159.34,159.3,6.2774]
[1724677319357,45.0,159.35,159.29,15.6943]
[1724677319650,45.0,159.36,159.32,15.6912]
[1724677319822,51.2751,159.36,159.3,6.2773]
[1724677320022,45.0,159.36,159.33,6.2762]
[1724677320224,45.0,159.36,159.32,1.25520719]
[1724677320437,45.0,159.36,159.31,15.6919]
[1724677321321,45.0,159.36,159.32,6.2764]
[1724677321532,45.0,159.36,159.31,21.9689]
[1724677322672,51.2752,159.36,159.31,21.9689]
[1724677322858,37.79969163,159.37,159.31,15.6919]
[1724677323046,37.79969163,159.37,159.28,15.6953]
[1724677323354,37.79969163,159.37,159.3,6.2774]
[1724677323931,6.2751,159.36,159.3,6.2774]
[1724677324246,45.0,159.35,159.3,6.2774]
[1724677324563,45.0,159.35,159.29,6.2777]
[1724677324564,37.79969163,159.34,159.29,6.2777]
[1724677324742,45.0,159.33,159.29,6.2777]
[1724677325058,45.0,159.33,159.27,0.8230578]
[1724677325351,15.9508,159.29,159.27,0.8230578]
[1724677325756,45.0,159.28,159.27,0.8230578]
[1724677326551,51.2782,159.28,159.27,0.8230578]
[1724677326762,89.07789163,159.28,159.27,0.8230578]
[1724677328168,82.79969163,159.28,159.27,0.8230578]
[1724677328363,45.0,159.28,159.27,0.8230578]
[1724677329554,45.0,159.28,159.27,7.1016578]
[1724677329746,15.9508,159.29,159.28,6.2782]
[1724677329944,399.7411,159.33,159.29,6.2778]
[1724677330377,399.7411,159.33,159.27,2.07864426]
[1724677330547,15.9411,159.33,159.32,6.2766]
[1724677331145,15.9411,159.33,159.3,15.6927]
[1724677331146,15.9411,159.33,159.3,21.97]
[1724677331569,15.9411,159.33,159.31,6.2769]
[1724677332247,15.9411,159.33,159.32,6.2766]
[1724677334062,15.9411,159.33,159.3,21.97]
[1724677334254,45.0,159.32,159.3,15.6927]
[1724677335377,15.9411,159.33,159.3,15.6927]
[1724677335584,54.04719163,159.37,159.32,6.2763]
[1724677335790,45.0,159.36,159.33,6.2761]
[1724677336491,16.2475,159.37,159.32,15.6909]
[1724677336661,16.2475,159.37,159.35,6.2754]
[1724677337062,16.2475,159.37,159.36,6.2751]
[1724677337770,383.8,159.4,159.36,15.6868]
[1724677337973,383.8,159.4,159.37,6.2746]
[1724677338156,15.8201,159.41,159.38,15.6851]
[1724677338358,383.8,159.45,159.3,37.79969163]
[1724677338560,21.9726,159.46,159.44,6.2719]
[1724677338791,21.9726,159.46,159.45,6.2715]
[1724677339087,21.9726,159.46,159.42,15.6809]
[1724677339088,21.9726,159.46,159.43,6.2719]
[1724677339464,21.9726,159.46,159.42,15.6809]
[1724677340264,21.9726,159.46,159.42,21.9532]
[1724677340881,15.8201,159.46,159.43,1.25447777]
[1724677341090,15.8201,159.46,159.45,6.2715]
[1724677341283,15.8201,159.46,159.44,6.2718]
[1724677343495,15.8201,159.46,159.43,6.2723]
[1724677343669,45.0,159.45,159.43,6.2723]
[1724677343994,45.0,159.45,159.42,15.6809]
[1724677344175,45.0,159.45,159.42,21.9536]
[1724677344769,45.0,159.45,159.42,15.6809]
[1724677346395,45.0,159.45,159.38,1.25448144]
[1724677346396,45.0,159.45,159.39,15.6843]
[1724677346570,37.79969163,159.44,159.39,15.6843]
[1724677346884,45.0,159.43,159.39,21.9582]
[1724677347091,45.0,159.43,159.41,6.273]
[1724677348391,45.0,159.43,159.42,6.2727]
[1724677348692,45.0,159.43,159.39,15.6843]
[1724677348886,45.0,159.43,159.41,6.273]
[1724677350192,15.8201,159.46,159.33,31.3807]
[1724677350374,15.8201,159.46,159.45,6.2715]
[1724677351162,44.40229163,159.5,159.45,15.6784]
[1724677351489,44.40229163,159.5,159.46,6.2708]
[1724677351691,6.6026,159.5,159.47,6.2705]
[1724677351989,6.6026,159.5,159.47,15.6761]
[1724677352471,6.6026,159.5,159.48,6.2702]
[1724677352672,6.6026,159.5,159.47,15.6761]
[1724677352872,12.8722,159.5,159.45,6.2714]
[1724677353967,45.0,159.49,159.45,6.2714]
[1724677355491,37.79969163,159.47,159.43,6.272]
[1724677355672,45.0,159.46,159.43,6.272]
[1724677356067,37.79969163,159.47,159.43,15.6804]
[1724677356362,12.8722,159.5,159.44,6.2716]
[1724677356363,50.67189163,159.5,159.44,6.2716]
[1724677356575,45.0,159.49,159.44,6.2716]
[1724677357213,51.2701,159.49,159.44,6.2716]
[1724677357511,435.0701,159.49,159.43,21.9526]
[1724677357804,435.0701,159.49,159.44,6.2718]
[1724677359601,428.8,159.49,159.43,15.6804]
[1724677359809,428.8,159.49,159.45,6.2712]
[1724677360604,383.8,159.49,159.48,6.2703]
[1724677360781,383.8,159.49,159.45,15.6781]
[1724677361874,383.8,159.49,159.41,31.3642]
[1724677362202,383.8,159.49,159.48,15.6759]
[1724677362495,383.8,159.49,159.46,6.271]
[1724677362703,383.8,159.49,159.46,6.2711]
[1724677363385,36.8569469,159.5,159.46,6.2711]
[1724677363787,45.0,159.49,159.46,6.2711]
[1724677363996,45.0,159.49,159.45,21.9497]
[1724677364298,30.2543469,159.48,159.45,21.9497]
[1724677364505,45.0,159.47,159.45,21.9497]
[1724677367585,45.0,159.47,159.46,6.2711]
[1724677367792,36.8569469,159.5,159.45,15.6783]
[1724677367984,36.8569469,159.5,159.47,15.6761]
[1724677368207,36.8569469,159.5,159.48,6.2703]
[1724677368405,6.6026,159.5,159.48,6.2703]
[1724677368612,15.5803,159.51,159.49,21.9444]
[1724677368794,15.5803,159.51,159.49,15.6746]
[1724677369900,15.5803,159.51,159.47,6.2706]
[1724677370890,15.5803,159.51,159.48,6.2703]
[1724677372829,15.5803,159.51,159.47,6.2706]
[1724677373137,36.5249469,159.48,159.43,21.9527]
[1724677373340,45.0,159.47,159.43,21.9527]
[1724677373701,45.0,159.47,159.44,6.2719]
[1724677374129,45.0,159.47,159.45,6.2714]
[1724677374400,45.0,159.47,159.44,6.2718]
[1724677375337,30.2543469,159.48,159.43,15.6805]
[1724677375499,45.0,159.47,159.43,15.6805]
[1724677375702,45.0,159.47,159.43,21.9525]
[1724677376327,45.0,159.47,159.44,6.2719]
[1724677379203,30.2543469,159.5,159.45,15.6786]
[1724677379413,6.28194187,159.49,159.45,15.6786]
[1724677379612,399.3803,159.51,159.45,15.6786]
[1724677379812,51.28163726,159.5,159.45,15.6786]
[1724677380016,6.28163726,159.49,159.45,15.6786]
[1724677380235,399.3803,159.51,159.47,15.6765]
[1724677380531,6.28137555,159.5,159.48,6.27]
[1724677380735,6.28137555,159.49,159.47,21.9471]
[1724677380937,42.80612245,159.48,159.44,15.6793]
[1724677381225,30.2543469,159.48,159.44,21.9509]
[1724677382025,36.5246469,159.48,159.44,21.9509]
[1724677382334,45.0,159.47,159.44,21.9509]
[1724677383143,36.5241469,159.5,159.45,6.2714]
[1724677383347,45.0,159.49,159.45,6.2714]
[1724677384216,45.0,159.49,159.45,7.52563962]
[1724677384643,45.0,159.49,159.45,6.2714]
[1724677384940,51.27,159.49,159.45,6.2714]
[1724677385534,45.0,159.49,159.46,6.2711]
[1724677385842,30.2543469,159.5,159.46,6.2711]
[1724677386527,15.6111,159.54,159.48,15.6756]
[1724677386859,21.8793,159.54,159.49,7.52353652]
[1724677388424,36.5215469,159.57,159.52,6.2685]
[1724677388660,36.5215469,159.57,159.53,6.2684]
[1724677388661,30.2543469,159.57,159.53,6.2684]
[1724677388828,22.2309,159.58,159.53,7.52200258]
[1724677390025,383.8,159.6,159.54,16.92270788]
[1724677390228,383.8,159.6,159.55,1.25329772]
[1724677390460,30.2543469,159.61,159.55,1.25329772]
[1724677390623,6.2659,159.6,159.55,7.52079772]
[1724677390825,6.2661,159.59,159.54,21.9371]
[1724677391032,15.9642,159.62,159.49,6.0613]
[1724677391033,30.2543469,159.57,159.52,6.2687]
[1724677391251,30.2543469,159.53,159.49,6.2696]
[1724677391452,30.2543469,159.53,159.48,15.6755]
[1724677391823,30.2543469,159.53,159.48,21.9455]
[1724677392065,30.2543469,159.53,159.48,15.6755]
[1724677392558,30.2543469,159.53,159.49,6.2699]
[1724677392760,36.5230469,159.53,159.48,15.6755]
[1724677393051,36.5238469,159.51,159.45,15.6784]
[1724677393823,45.0,159.5,159.45,15.6784]
[1724677394040,45.0,159.5,159.46,7.52489903]
[1724677396254,6.2684,159.53,159.47,15.6763]
[1724677396565,399.0563,159.55,159.51,6.2691]
[1724677397557,399.0563,159.55,159.52,6.2686]
[1724677399062,15.2563,159.55,159.52,6.2686]
[1724677399585,37.82463443,159.57,159.53,6.2683]
[1724677399767,37.82463443,159.57,159.51,15.6724]
[1724677400080,37.82463443,159.57,159.52,1.25347207]
[1724677400484,16.3391,159.59,159.53,1.2534717]
[1724677400684,22.6054,159.59,159.54,6.2679]
[1724677400861,16.3391,159.59,159.51,15.6724]
[1724677401065,37.82463443,159.57,159.51,15.6724]
[1724677401297,37.82463443,159.57,159.48,15.6753]
[1724677401601,6.2692,159.51,159.46,6.271]
[1724677401807,45.0,159.5,159.46,6.271]
[1724677402298,51.2696,159.5,159.45,21.9501]
[1724677402607,6.2707,159.48,159.42,21.9539]
[1724677402772,45.0,159.47,159.42,21.9539]
[1724677403205,45.0,159.47,159.39,15.6843]
[1724677403386,6.2717,159.45,159.4,6.2732]
[1724677403574,45.0,159.44,159.4,6.2732]
[1724677404413,16.4069,159.43,159.36,15.6877]
[1724677404566,82.82463443,159.42,159.37,6.2746]
[1724677405271,82.82463443,159.42,159.38,6.2742]
[1724677405666,82.82463443,159.42,159.39,6.2738]
[1724677405871,45.0,159.42,159.39,6.2738]
[1724677409594,16.4069,159.43,159.39,15.6842]
[1724677409796,16.4069,159.43,159.4,1.25452385]
[1724677410293,16.4069,159.43,159.39,15.6842]
[1724677410696,16.4069,159.43,159.41,6.2731]
[1724677410895,16.4069,159.43,159.39,15.6842]
[1724677410896,16.4069,159.43,159.4,6.2734]
[1724677414597,16.4069,159.43,159.41,7.52747322]
[1724677414797,16.4069,159.43,159.41,6.273]
[1724677415702,16.4069,159.43,159.4,6.2734]
[1724677416299,16.4069,159.43,159.39,21.9579]
[1724677416489,45.0,159.42,159.39,21.9579]
[1724677416686,75.2839358,159.42,159.39,15.6842]
[1724677417113,75.2839358,159.42,159.39,21.958]
[1724677417328,45.0,159.42,159.39,21.958]
[1724677417492,16.4069,159.43,159.4,6.2731]
[1724677421311,22.1348,159.47,159.42,6.2724]
[1724677421519,45.0,159.46,159.43,1.25437026]
[1724677422246,45.0,159.46,159.42,6.2724]
[1724677422826,45.0,159.46,159.42,7.52676679]
[1724677423700,45.0,159.46,159.43,6.2723]
[1724677423900,15.864,159.47,159.45,6.2714]
[1724677424133,383.8,159.48,159.44,1.25413482]
[1724677424339,383.8,159.48,159.47,6.2707]
[1724677425937,383.8,159.51,159.48,6.2703]
[1724677427720,383.8,159.51,159.47,21.9472]
[1724677428419,45.0,159.5,159.47,21.9472]
[1724677428834,75.2839358,159.5,159.47,21.9472]
[1724677429036,75.2839358,159.5,159.47,15.6765]
[1724677429511,81.5536358,159.5,159.45,6.2715]
[1724677429713,30.2839358,159.48,159.44,21.9511]
[1724677431252,45.0,159.5,159.44,15.6793]
[1724677431545,81.5535358,159.5,159.44,15.6793]
[1724677431769,383.8,159.49,159.45,6.2715]
[1724677431943,45.0,159.48,159.45,6.2715]
[1724677432143,45.0,159.48,159.44,21.9511]
[1724677434567,45.0,159.48,159.45,6.2715]
[1724677434869,383.8,159.49,159.46,6.2711]
[1724677437871,30.2839358,159.5,159.46,6.2711]
[1724677438865,15.0011,159.52,159.49,6.2699]
[1724677439189,15.0011,159.52,159.47,1.25404914]
[1724677439190,15.0011,159.52,159.48,6.2702]
[1724677439362,15.0011,159.52,159.49,1.25383775]
[1724677440465,21.2701,159.52,159.49,1.25383775]
[1724677440780,51.2694,159.51,159.47,6.2707]
[1724677441457,51.2694,159.51,159.46,21.9483]
[1724677441857,390.0672,159.56,159.52,6.2686]
[1724677442169,6.2673,159.56,159.51,21.9416]
[1724677443291,30.2839358,159.55,159.48,15.6754]
[1724677443476,6.2681,159.54,159.49,6.2699]
[1724677443857,30.2839358,159.55,159.5,21.943]
[1724677444159,81.5521358,159.54,159.44,0.8234]
[1724677444380,36.5521358,159.54,159.44,0.8234]
[1724677444579,30.2839358,159.56,159.48,15.6753]
[1724677444786,36.5505358,159.58,159.53,6.2683]
[1724677445379,36.5505358,159.58,159.52,6.2687]
[1724677445777,36.5505358,159.58,159.53,1.2535117]
[1724677447101,6.2666,159.58,159.53,1.2535117]
[1724677447300,36.5505358,159.58,159.53,7.5218117]
[1724677447723,30.2839358,159.58,159.53,7.5218117]
[1724677448210,16.4179,159.6,159.53,1.2535117]
[1724677448405,15.673,159.68,159.53,1.2535117]
[1724677448406,15.0903,159.64,159.53,1.2535117]
[1724677448774,383.8,159.69,159.63,15.6604]
[1724677449091,51.6360358,159.7,159.64,7.51661878]
[1724677449420,51.6360358,159.7,159.63,15.6604]
[1724677449421,45.3742358,159.7,159.66,6.2632]
[1724677449589,15.0903,159.7,159.65,16.91077302]
[1724677449905,15.0903,159.7,159.66,1.25247704]
[1724677450282,15.0903,159.7,159.66,7.51567704]
[1724677450833,15.0903,159.7,159.66,1.25247704]
[1724677451172,45.3742358,159.7,159.63,6.2641]
[1724677451375,36.5464358,159.68,159.62,15.6621]
[1724677451678,6.2629,159.67,159.62,15.6621]
[1724677451885,36.5472358,159.66,159.62,15.6621]
[1724677452107,30.2839358,159.66,159.62,15.6621]
[1724677452475,30.2839358,159.68,159.63,1.25285461]
[1724677452779,30.2839358,159.68,159.62,15.6621]
[1724677452780,45.0,159.67,159.62,21.9269]
[1724677452985,51.2629,159.67,159.62,21.9269]
[1724677453199,36.5475358,159.66,159.6,6.2653]
[1724677453500,30.2839358,159.66,159.61,6.2651]
[1724677453706,30.2839358,159.66,159.61,7.51791122]
[1724677454093,44.01571308,159.66,159.6,6.2656]
[1724677454296,44.01571308,159.66,159.61,6.2652]
[1724677454297,45.0,159.65,159.61,6.2652]
[1724677457602,37.75241308,159.66,159.63,6.2644]
[1724677457803,37.75241308,159.66,159.62,7.51766664]
[1724677458006,37.75241308,159.66,159.6,21.9287]
[1724677458212,45.0,159.65,159.61,6.2652]
[1724677460210,45.0,159.65,159.6,21.929]
[1724677460429,6.2649,159.62,159.56,15.6672]
[1724677460718,44.01681308,159.63,159.58,6.2664]
[1724677461714,37.75241308,159.63,159.6,6.2656]
[1724677461922,37.75241308,159.63,159.59,6.266]
[1724677462121,51.2637,159.65,159.6,7.51860139]
[1724677462345,37.75241308,159.66,159.63,6.2642]
[1724677462639,37.75241308,159.66,159.55,32.1606]
[1724677463126,37.75241308,159.66,159.56,1.25277249]
[1724677463514,37.75241308,159.66,159.62,21.9262]
[1724677464251,37.75241308,159.66,159.63,1.25277255]
[1724677464615,37.75241308,159.66,159.62,21.9262]
[1724677465749,6.2637,159.65,159.6,6.2655]
[1724677466045,44.01571308,159.66,159.61,6.2651]
[1724677468656,44.01571308,159.66,159.62,6.2648]
[1724677469358,6.2625,159.68,159.63,7.51707549]
[1724677470361,6.2625,159.68,159.63,6.2643]
[1724677470556,37.75241308,159.69,159.61,15.6624]
[1724677470733,45.0,159.68,159.62,6.2648]
[1724677471232,6.2637,159.65,159.61,6.2652]
[1724677471547,6.2633,159.66,159.61,6.2652]
[1724677471938,6.2645,159.63,159.58,6.2661]
[1724677472733,6.2651,159.62,159.57,21.9331]
[1724677473061,6.2645,159.63,159.58,6.2663]
[1724677474160,53.23201308,159.63,159.54,15.6694]
[1724677474461,37.75241308,159.6,159.51,31.3442]
[1724677474642,6.2661,159.59,159.54,6.2679]
[1724677474839,44.01811308,159.6,159.54,6.2679]
[1724677475035,44.01811308,159.6,159.55,6.2675]
[1724677475243,45.0,159.59,159.54,7.52123033]
[1724677475453,45.0,159.59,159.53,15.6705]
[1724677475659,6.2672,159.56,159.5,15.6738]
[1724677476167,36.50821414,159.56,159.51,6.269]
[1724677476332,30.24101414,159.56,159.52,7.52231343]
[1724677477472,30.24101414,159.56,159.53,7.52180696]
[1724677477668,30.24101414,159.56,159.53,6.2683]
[1724677478050,6.4827,159.57,159.54,6.2679]
[1724677479148,30.24101414,159.58,159.55,6.2675]
[1724677479548,30.24101414,159.6,159.54,15.6695]
[1724677480068,30.24101414,159.6,159.55,1.25332474]
[1724677480446,30.24101414,159.6,159.56,6.2671]
[1724677481869,6.0868,159.61,159.56,15.6671]
[1724677482047,45.0,159.6,159.56,21.9342]
[1724677482373,51.2657,159.6,159.56,15.6671]
[1724677483046,81.50671414,159.6,159.56,15.6671]
[1724677483875,6.2663,159.59,159.54,6.2677]
[1724677484176,75.24101414,159.6,159.5,15.6737]
[1724677484177,75.24101414,159.58,159.5,15.6737]
[1724677484383,81.50751414,159.58,159.53,6.2683]
[1724677484764,30.24101414,159.58,159.54,6.2679]
[1724677485690,30.24101414,159.58,159.55,6.2674]
[1724677486470,30.24101414,159.58,159.54,21.9375]
[1724677486667,45.0,159.57,159.53,6.2682]
[1724677488192,30.24101414,159.58,159.55,6.2675]
[1724677489385,30.24101414,159.58,159.54,21.9376]
[1724677489765,30.24101414,159.58,159.53,6.2683]
[1724677489965,45.0,159.57,159.53,6.2683]
[1724677490591,51.2671,159.57,159.51,15.6724]
[1724677490776,30.24101414,159.54,159.48,15.6756]
[1724677491094,30.24101414,159.54,159.5,6.2695]
[1724677491473,30.24101414,159.54,159.51,6.2691]
[1724677492398,36.50911414,159.54,159.48,15.6756]
[1724677492577,30.24101414,159.52,159.48,21.9459]
[1724677494378,30.24101414,159.52,159.49,6.2699]
[1724677494997,30.24101414,159.52,159.49,7.52380996]
[1724677495181,36.37751414,159.54,159.5,6.2695]
[1724677496573,42.64561414,159.54,159.49,6.2698]
[1724677496975,45.0,159.53,159.49,6.2698]
[1724677499192,30.24101414,159.52,159.49,6.2698]
[1724677501390,30.24101414,159.52,159.48,21.9458]
[1724677502203,45.0,159.53,159.5,21.9428]
[1724677502577,45.0,159.53,159.51,6.2691]
[1724677502777,6.1365,159.54,159.51,1.25382647]
[1724677503033,6.1365,159.54,159.51,7.52262647]
[1724677503904,15.6655,159.56,159.54,6.2679]
[1724677504207,15.6655,159.56,159.52,15.6713]
[1724677504406,15.6655,159.56,159.53,7.52153193]
[1724677505214,383.8,159.59,159.54,15.6694]
[1724677505505,383.8,159.59,159.58,6.2664]
[1724677505708,22.4865,159.67,159.58,95.24101414]
[1724677505881,22.4865,159.67,159.59,21.25261064]
[1724677506073,15.9147,159.67,159.59,21.25261064]
[1724677506494,15.9147,159.67,159.54,38.04582984]
[1724677506675,15.9147,159.67,159.6,15.6632]
[1724677507390,15.9147,159.67,159.65,6.2636]
[1724677508706,15.9147,159.67,159.64,6.264]
[1724677511490,6.1864,159.78,159.65,6.4126]
[1724677511694,6.1864,159.78,159.73,6.2602]
[1724677511920,6.1864,159.78,159.71,15.6532]
[1724677512126,6.1864,159.78,159.73,6.2602]
[1724677512838,6.1864,159.78,159.74,15.6503]
[1724677513133,6.1864,159.78,159.75,6.2597]
[1724677513336,6.1864,159.78,159.76,6.2593]
[1724677513500,16.1669,159.8,159.77,6.2589]
[1724677514329,16.1669,159.8,159.78,6.2585]
[1724677514704,16.1669,159.8,159.78,6.2582]
[1724677515009,46.40791414,159.8,159.76,15.6475]
[1724677516030,46.40791414,159.8,159.76,21.9068]
[1724677516531,16.1669,159.8,159.76,21.9068]
[1724677516740,0.8230578,159.83,159.82,6.257]
[1724677517097,0.8230578,159.83,159.82,21.8995]
[1724677518336,0.8230578,159.83,159.82,52.14051414]
[1724677518836,0.8230578,159.83,159.82,21.8995]
[1724677522319,6.0569,159.95,159.82,21.8995]
[1724677522320,0.8230578,159.99,159.84,31.2806]
[1724677522519,0.8230578,159.99,159.94,6.2521]
[1724677522722,0.8230578,159.99,159.87,37.63867201]
[1724677522723,0.8230578,159.99,159.95,6.2519]
[1724677523058,0.8230578,159.99,159.92,15.6326]
[1724677523059,0.8230578,159.99,159.97,6.2508]
[1724677523641,0.8230578,159.99,159.87,37.63867201]
[1724677523642,0.8230578,159.99,159.95,6.2517]
[1724677524756,45.8230578,159.99,159.95,6.2517]
[1724677524956,45.8230578,159.99,159.9,15.6338]
[1724677525263,45.0,159.98,159.93,6.2526]
[1724677525579,7.0734578,159.99,159.93,6.2526]
[1724677525858,45.0,159.98,159.93,6.2526]
[1724677526734,51.2508,159.98,159.92,6.253]
[1724677526949,88.88947201,159.98,159.92,6.253]
[1724677527155,6.2516,159.96,159.9,21.8874]
[1724677527454,0.8230578,159.99,159.95,6.2517]
[1724677527662,0.8230578,159.99,159.89,37.63867201]
[1724677527853,0.8230578,159.99,159.98,6.2507]
[1724677532040,0.8230578,159.99,159.96,15.6281]
[1724677532355,0.8230578,159.99,159.95,6.2519]
[1724677533092,0.8230578,159.99,159.96,6.2515]
[1724677533373,0.8230578,159.99,159.95,6.2518]
[1724677534372,0.8230578,159.99,159.96,6.2515]
[1724677535059,0.8230578,159.99,159.95,6.2519]
[1724677535257,0.8230578,159.99,159.98,6.2507]
[1724677535656,0.8230578,159.99,159.97,21.8783]
[1724677537166,0.8230578,159.99,159.95,6.2517]
[1724677537679,0.8230578,159.99,159.96,6.2515]
[1724677537881,0.8230578,159.99,159.98,6.2507]
[1724677538056,0.8230578,159.99,159.96,21.8793]
[1724677539579,0.8230578,159.99,159.96,15.6281]
[1724677539761,7.0734578,159.99,159.93,21.8839]
[1724677540086,45.0,159.98,159.93,21.8839]
[1724677540278,0.8230578,159.99,159.91,31.2669]
[1724677540654,0.8230578,159.99,159.92,1.25001418]
[1724677540855,0.8230578,159.99,159.98,6.2507]
[1724677541256,0.8230578,159.99,159.98,7.5007116]
[1724677541577,0.8230578,159.99,159.98,6.2507]
[1724677543060,0.8230578,159.99,159.97,16.87722388]
[1724677543555,0.8230578,159.99,159.98,6.2507]
[1724677544676,0.8230578,159.99,159.98,26.2507]
[1724677544881,0.8230578,159.99,159.98,27.50030104]
[1724677546200,0.8230578,159.99,159.98,26.2507]
[1724677550465,0.8230578,159.99,159.98,6.2507]
[1724677555085,0.8230578,159.99,159.98,7.50056401]
[1724677556004,0.8230578,159.99,159.98,6.2507]
[1724677556803,0.8230578,159.99,159.98,7.50062295]
[1724677557995,0.8230578,159.99,159.98,6.2507]
[1724677559090,0.8230578,159.99,159.98,7.5006991]
[1724677559674,0.8230578,159.99,159.98,6.2507]
[1724677560297,0.8230578,159.99,159.98,7.500718]
[1724677560881,0.8230578,159.99,159.98,6.2507]
[1724677562007,0.8230578,159.99,159.98,7.50058845]
[1724677562880,0.8230578,159.99,159.98,6.2507]
[1724677563583,0.8230578,159.99,159.98,7.50041727]
[1724677564022,0.8230578,159.99,159.98,6.2507]
[1724677564807,0.8230578,159.99,159.98,26.2507]
[1724677567515,15.6272,160.06,160.05,21.8681]
[1724677568421,0.9508,160.08,160.07,6.2472]
[1724677571730,0.9508,160.08,160.05,15.6201]
[1724677572024,7.1977,160.08,160.03,6.2487]
[1724677572223,45.0,160.07,160.03,6.2487]
[1724677572603,45.0,160.07,160.04,6.2483]
[1724677572790,45.0,160.07,160.03,6.2487]
[1724677573699,45.0,160.07,160.0,6.2499]
[1724677573700,22.5949,160.04,160.0,6.2499]
[1724677573907,45.0,160.03,159.99,21.8754]
[1724677574292,45.0,160.03,159.99,21.8756]
[1724677574999,51.2488,160.03,159.99,15.6254]
[1724677575318,51.2488,160.03,159.98,6.2506]
[1724677575495,6.2492,160.02,159.97,6.251]
[1724677575700,45.0,160.01,159.97,6.251]
[1724677576103,45.0,160.01,159.98,6.2507]
[1724677576422,45.0,160.02,159.98,6.2507]
[1724677577405,45.0,160.02,159.98,15.626]
[1724677577613,45.0,160.03,160.0,6.2499]
[1724677578403,45.0,160.03,160.0,15.6241]
[1724677578705,45.0,160.03,159.98,6.2505]
[1724677579021,45.0,160.03,159.99,6.2503]
[1724677579534,6.2492,160.02,159.97,6.2508]
[1724677579696,45.0,160.01,159.97,6.2508]
[1724677580712,6.2489,160.03,159.96,15.6281]
[1724677580917,45.0,160.02,159.96,15.6281]
[1724677581120,28.8433,160.04,159.98,15.6263]
[1724677581337,22.5949,160.04,159.98,15.6263]
[1724677581508,22.5949,160.04,160.01,6.2496]
[1724677581927,22.5949,160.04,160.0,6.2499]
[1724677582245,22.5949,160.04,159.98,15.6263]
[1724677582246,45.0,160.03,159.98,15.6263]
[1724677582534,6.2492,160.02,159.98,15.6263]
[1724677582702,45.0,160.01,159.98,21.877]
[1724677583103,45.0,160.02,159.98,21.877]
[1724677583826,45.0,160.02,159.98,15.6263]
[1724677584014,60.14436892,160.04,160.0,6.2497]
[1724677584704,60.14436892,160.04,160.01,6.2495]
[1724677585303,60.14436892,160.04,160.0,6.2499]
[1724677585504,45.0,160.03,160.0,6.2499]
[1724677587339,51.249,160.03,159.98,15.6263]
[1724677587625,51.249,160.03,159.98,21.8768]
[1724677587831,45.0,160.03,159.99,6.2503]
[1724677588206,45.0,160.03,159.98,15.6263]
[1724677588207,51.2488,160.03,159.98,21.877]
[1724677588514,6.25,160.0,159.96,6.2514]
[1724677588719,45.0,159.99,159.95,15.6295]
[1724677588931,45.0,159.99,159.96,6.2512]
[1724677589110,45.0,160.0,159.96,6.2512]